bitfinex/quotes_SOLUSD_20260314
["timestamp","ask_amount","ask_price","bid_price","bid_amount"]
[1773481996183,0.49595097,86.927,86.898,11.50764348]
[1773481996184,0.49595097,86.909,86.882,0.36722401]
[1773481996978,0.49595097,86.917,86.884,0.36894197]
[1773481999079,0.49595097,86.915,86.886,0.3723189]
[1773481999968,0.49595097,86.915,86.887,11.5092016]
[1773482000181,0.49595097,86.915,86.888,0.37397834]
[1773482001284,11.50562625,86.914,86.888,0.37397834]
[1773482001487,12.00514967,86.914,86.888,0.37397834]
[1773482001680,0.49952342,86.909,86.888,0.37397834]
[1773482003168,0.49952342,86.907,86.881,0.38042764]
[1773482004482,11.50668538,86.906,86.881,0.38042764]
[1773482004782,11.50668538,86.906,86.883,0.38354225]
[1773482005183,0.49952342,86.907,86.883,0.38354225]
[1773482005885,11.50603926,86.911,86.883,0.38354225]
[1773482006887,11.50603926,86.911,86.884,11.509599]
[1773482007189,11.50603926,86.911,86.885,0.38658571]
[1773482008289,0.49952342,86.912,86.887,0.38808127]
[1773482009189,0.49952342,86.909,86.887,0.38808127]
[1773482009866,0.49952342,86.909,86.88,11.51001986]
[1773482010272,0.49952342,86.899,86.88,11.51001986]
[1773482010580,0.49952342,86.899,86.876,0.39102107]
[1773482010787,0.49952342,86.899,86.877,11.51052637]
[1773482012286,0.49952342,86.899,86.877,11.90442009]
[1773482012487,0.49952342,86.899,86.878,0.39530534]
[1773482014282,0.49952342,86.899,86.879,11.51026139]
[1773482015192,0.49952342,86.899,86.879,11.90834153]
[1773482016077,0.49952342,86.899,86.879,0.39808014]
[1773482016399,0.49952342,86.899,86.879,11.90834153]
[1773482017095,0.49952342,86.899,86.88,0.40079155]
[1773482019300,0.49952342,86.899,86.874,0.40344104]
[1773482020500,0.49952342,86.899,86.876,0.40603002]
[1773482022895,0.49952342,86.904,86.878,0.40855986]
[1773482026608,0.49952342,86.904,86.88,0.41344752]
[1773482028403,11.5070826,86.903,86.88,0.41344752]
[1773482028794,0.53563441,86.902,86.88,0.41344752]
[1773482029110,0.53563441,86.902,86.882,0.41696787]
[1773482033510,0.53563441,86.902,86.884,0.42257066]
[1773482033816,0.53563441,86.902,86.88,0.4236529]
[1773482034398,3.75348937,86.91,86.88,0.4236529]
[1773482034399,0.54916367,86.9,86.88,0.4236529]
[1773482036407,0.54916367,86.9,86.875,0.42578023]
[1773482038406,0.54916367,86.9,86.876,11.51065887]
[1773482038917,0.54916367,86.9,86.876,11.93953935]
[1773482039220,0.54916367,86.9,86.877,0.42888048]
[1773482040222,0.54916367,86.9,86.879,0.42989025]
[1773482041304,11.50761228,86.899,86.879,0.42989025]
[1773482041526,0.54916367,86.898,86.879,0.42989025]
[1773482043022,0.54916367,86.898,86.881,0.4328505]
[1773482048137,0.54916367,86.898,86.882,11.50986395]
[1773482049315,0.54916367,86.898,86.882,0.43847191]
[1773482049523,11.50699103,86.904,86.872,0.43937152]
[1773482049728,0.54916367,86.903,86.872,0.43937152]
[1773482051532,0.54916367,86.903,86.873,11.51105636]
[1773482052012,0.54916367,86.903,86.874,0.44113984]
[1773482053433,0.54916367,86.903,86.875,11.51079136]
[1773482053614,0.54916367,86.903,86.876,0.44286777]
[1773482055133,11.50721502,86.902,86.876,0.44286777]
[1773482055320,0.54916367,86.899,86.876,0.44286777]
[1773482056322,0.54916367,86.899,86.877,11.51052637]
[1773482056523,0.54916367,86.899,86.878,0.44538596]
[1773482057233,0.54916367,86.897,86.867,0.44538596]
[1773482058517,0.54916367,86.897,86.871,0.44620614]
[1773482061044,0.54916367,86.897,86.873,0.44861061]
[1773482062541,0.54916367,86.897,86.875,0.45093317]
[1773482062939,0.54916367,86.897,86.874,11.51092386]
[1773482063238,0.5225913,86.896,86.869,11.51147668]
[1773482064322,0.5225913,86.894,86.869,11.51147668]
[1773482065341,11.50840689,86.893,86.869,11.51147668]
[1773482065545,0.5225913,86.892,86.869,11.51147668]
[1773482067241,0.5225913,86.892,86.857,29.23661485]
[1773482067464,0.5225913,86.889,86.857,29.23661485]
[1773482067643,0.5225913,86.889,86.858,0.45462963]
[1773482069445,0.5225913,86.879,86.853,11.51370706]
[1773482072651,0.5225913,86.859,86.837,28.78952222]
[1773482072836,0.5225913,86.859,86.832,0.45811863]
[1773482074650,0.5225913,86.859,86.833,11.97515154]
[1773482075048,3.75685183,86.87,86.834,0.45945876]
[1773482077037,0.5225913,86.868,86.836,0.5450277]
[1773482077852,3.75685183,86.86,86.836,0.5450277]
[1773482078052,0.5225913,86.859,86.836,0.5450277]
[1773482079748,0.5225913,86.873,86.841,0.5450277]
[1773482080531,0.5225913,86.869,86.841,0.5450277]
[1773482081042,0.5225913,86.869,86.843,0.5450277]
[1773482082649,0.5225913,86.867,86.842,11.51516547]
[1773482082854,0.5225913,86.859,86.834,0.5450277]
[1773482083244,0.5225913,86.859,86.835,0.5450277]
[1773482084656,0.5225913,86.857,86.835,0.5450277]
[1773482086155,0.5225913,86.857,86.837,0.5450277]
[1773482086743,0.5225913,86.868,86.837,0.5450277]
[1773482089538,0.5225913,86.868,86.833,7.34]
[1773482089539,0.5338889,86.866,86.839,0.55315911]
[1773482090257,0.5338889,86.866,86.838,11.51569589]
[1773482090457,0.5338889,86.859,86.838,11.51569589]
[1773482092652,0.5436877,86.857,86.838,11.51569589]
[1773482095345,0.5436877,86.855,86.832,11.51648979]
[1773482097978,0.5436877,86.853,86.83,0.2]
[1773482098665,0.5436877,86.853,86.83,0.72760286]
[1773482099164,0.5436877,86.851,86.831,0.52760286]
[1773482099371,0.5436877,86.851,86.831,12.0442271]
[1773482101471,3.75685183,86.86,86.831,12.0442271]
[1773482101771,3.75685183,86.86,86.832,0.52760286]
[1773482102347,3.75685183,86.87,86.832,0.52760286]
[1773482103557,0.5436877,86.867,86.834,0.52760286]
[1773482104672,0.5436877,86.865,86.836,0.52760286]
[1773482107574,0.5436877,86.863,86.838,0.52760286]
[1773482110662,0.5436877,86.863,86.84,0.52760286]
[1773482111575,0.5436877,86.863,86.842,0.52760286]
[1773482114361,0.5436877,86.863,86.844,0.52760286]
[1773482115872,0.5436877,86.869,86.846,0.52760286]
[1773482119470,11.51171892,86.868,86.846,0.52760286]
[1773482119769,0.5436877,86.867,86.848,0.52760286]
[1773482120781,0.5436877,86.884,86.861,0.52760286]
[1773482122087,11.50921718,86.887,86.863,0.57697283]
[1773482122281,0.58685638,86.888,86.863,0.57697283]
[1773482122481,15.85476028,86.9,86.863,0.57697283]
[1773482123581,15.85476028,86.9,86.871,0.57697283]
[1773482123779,0.58685638,86.899,86.871,0.57697283]
[1773482124176,0.58685638,86.899,86.873,0.57697283]
[1773482126793,0.58685638,86.897,86.875,0.57697283]
[1773482129585,12.09486595,86.896,86.875,0.57697283]
[1773482129794,0.58685638,86.895,86.875,0.57697283]
[1773482131574,0.58685638,86.893,86.87,0.57697283]
[1773482134481,0.58685638,86.893,86.871,11.51132138]
[1773482134785,0.58685638,86.893,86.871,12.08829421]
[1773482135479,0.58685638,86.893,86.872,0.57697283]
[1773482137296,0.58685638,86.891,86.872,0.57697283]
[1773482138996,28.76329448,86.917,86.881,0.57697283]
[1773482139202,0.58685638,86.915,86.881,0.57697283]
[1773482140083,0.58685638,86.912,86.881,0.57697283]
[1773482144301,0.58685638,86.889,86.859,11.51291173]
[1773482144605,40.2710819,86.911,86.859,11.51291173]
[1773482144606,0.58685638,86.879,86.86,0.57697283]
[1773482146402,0.58685638,86.888,86.862,0.57697283]
[1773482147792,11.5092016,86.887,86.862,0.57697283]
[1773482147994,0.58685638,86.886,86.862,0.57697283]
[1773482149804,0.58685638,86.886,86.863,11.51238156]
[1773482150102,0.58685638,86.886,86.864,0.57265836]
[1773482152906,0.57319294,86.884,86.864,0.57265836]
[1773482153400,0.57319294,86.884,86.851,0.56404852]
[1773482153601,0.57319294,86.879,86.851,12.07802072]
[1773482153784,0.57319294,86.879,86.852,0.56404852]
[1773482158490,11.51039388,86.878,86.853,11.51370706]
[1773482158692,0.57319294,86.877,86.854,0.56404852]
[1773482160504,0.57319294,86.877,86.853,11.51370706]
[1773482161504,0.57319294,86.875,86.854,0.56404852]
[1773482164293,0.57319294,86.869,86.85,0.56404852]
[1773482166412,0.57319294,86.869,86.85,12.07805656]
[1773482166994,0.57319294,86.869,86.851,0.56404852]
[1773482169224,0.57319294,86.869,86.851,12.0779986]
[1773482169724,0.57319294,86.869,86.852,0.56404852]
[1773482172309,0.57319294,86.869,86.854,0.56404852]
[1773482173219,0.57319294,86.888,86.861,0.56404852]
[1773482173422,11.5092016,86.887,86.861,0.56404852]
[1773482174498,11.5092016,86.887,86.863,0.56404852]
[1773482175703,0.57319294,86.886,86.863,0.56404852]
[1773482186421,0.57319294,86.886,86.853,28.78426767]
[1773482188125,11.50946653,86.885,86.853,28.78426767]
[1773482188311,0.58636249,86.884,86.853,28.78426767]
[1773482188513,0.58636249,86.884,86.856,0.58980882]
[1773482190026,0.58636249,86.879,86.855,11.51344194]
[1773482190327,0.58636249,86.879,86.856,0.58980882]
[1773482190734,3.75963313,86.89,86.861,0.58980882]
[1773482191032,0.58636249,86.889,86.861,0.58980882]
[1773482193335,0.58636249,86.887,86.862,0.58980882]
[1773482196740,0.58636249,86.885,86.862,0.58980882]
[1773482199335,0.58636249,86.885,86.863,11.51238156]
[1773482199519,0.58636249,86.885,86.864,0.58980882]
[1773482200536,0.58636249,86.885,86.865,11.5121165]
[1773482200716,0.58636249,86.885,86.866,0.58980882]
[1773482204934,0.58636249,86.899,86.868,0.58980882]
[1773482206427,0.58636249,86.899,86.87,0.58980882]
[1773482207443,0.58636249,86.897,86.871,11.51132138]
[1773482207643,0.58636249,86.897,86.872,0.58980882]
[1773482209744,0.58636249,86.897,86.873,11.51105636]
[1773482210140,0.58636249,86.897,86.873,12.0747381]
[1773482210730,0.58636249,86.897,86.873,0.56368174]
[1773482211947,0.61508843,86.895,86.873,0.56368174]
[1773482213544,0.61508843,86.893,86.871,11.5113103]
[1773482213742,0.61508843,86.893,86.871,12.09066095]
[1773482214045,0.61508843,86.893,86.872,0.57935065]
[1773482220654,0.61508843,86.889,86.872,0.57935065]
[1773482222559,0.61508843,86.889,86.874,0.57935065]
[1773482228181,0.61508843,86.889,86.868,0.57935065]
[1773482229071,0.61508843,86.887,86.868,0.57935065]
[1773482229772,0.61508843,86.887,86.852,0.57935065]
[1773482230586,0.61508843,86.887,86.853,40.29797473]
[1773482230764,0.61508843,86.887,86.854,0.57935065]
[1773482231169,0.61508843,86.879,86.854,0.57935065]
[1773482234184,0.61508843,86.879,86.842,28.78761194]
[1773482234185,0.61508843,86.878,86.855,0.57935065]
[1773482235385,11.51052637,86.877,86.855,0.57935065]
[1773482235687,0.61508843,86.876,86.855,0.57935065]
[1773482239189,0.61508843,86.874,86.855,0.57935065]
[1773482240773,11.51105636,86.873,86.855,0.57935065]
[1773482240977,0.61508843,86.872,86.855,0.57935065]
[1773482241374,0.61398653,86.869,86.845,11.51476673]
[1773482241776,0.61398653,86.869,86.845,12.15038566]
[1773482241976,0.61398653,86.869,86.846,0.63561893]
[1773482245602,0.61398653,86.869,86.848,0.63561893]
[1773482249093,0.61398653,86.867,86.848,0.63561893]
[1773482250998,0.61398653,86.867,86.844,0.63561893]
[1773482252187,12.12521475,86.872,86.844,0.63561893]
[1773482252387,0.61398653,86.871,86.844,0.63561893]
[1773482255408,0.61398653,86.869,86.846,0.63561893]
[1773482258705,0.61398653,86.869,86.847,11.51450251]
[1773482258906,0.61398653,86.869,86.848,0.63561893]
[1773482260112,11.51171892,86.868,86.833,11.51635898]
[1773482260410,0.61398653,86.864,86.834,0.63561893]
[1773482261008,0.61398653,86.863,86.836,0.63561893]
[1773482261208,0.61398653,86.868,86.841,0.63561893]
[1773482262296,11.51105051,86.874,86.841,0.63561893]
[1773482262491,0.61398653,86.873,86.841,0.63561893]
[1773482265002,0.61398653,86.873,86.843,0.63561893]
[1773482267086,0.61398653,86.873,86.845,0.63561893]
[1773482269707,0.61398653,86.873,86.847,0.63807382]
[1773482271415,0.61398653,86.873,86.849,0.6412891]
[1773482275101,0.61398653,86.873,86.851,0.6412891]
[1773482275892,0.61062651,86.889,86.851,0.6412891]
[1773482276099,11.50842394,86.893,86.861,0.6412891]
[1773482276910,0.61062651,86.891,86.861,0.6412891]
[1773482277314,0.61062651,86.891,86.862,11.5125141]
[1773482277517,0.61062651,86.891,86.863,0.6412891]
[1773482277811,0.61062651,86.891,86.862,11.5125141]
[1773482277812,11.5073767,86.901,86.871,0.6412891]
[1773482278114,11.5066918,86.906,86.881,0.39338673]
[1773482278498,12.11731831,86.906,86.881,0.39338673]
[1773482279219,0.61062651,86.905,86.881,0.39338673]
[1773482281417,0.61062651,86.921,86.891,0.39529168]
[1773482281600,0.61062651,86.921,86.901,0.39529168]
[1773482281995,0.61062651,86.93,86.901,0.39529168]
[1773482282419,0.61062651,86.926,86.901,0.39529168]
[1773482284597,11.50417026,86.925,86.901,0.39529168]
[1773482284802,0.61062651,86.924,86.901,0.39529168]
[1773482288015,0.61062651,86.924,86.903,0.42069536]
[1773482290223,0.61062651,86.924,86.904,11.50695019]
[1773482291704,0.61062651,86.924,86.904,11.94600103]
[1773482291899,0.61062651,86.924,86.905,0.43905084]
[1773482293917,0.61062651,86.924,86.906,11.50668538]
[1773482295325,0.61062651,86.924,86.906,11.95895679]
[1773482296724,0.61062651,86.924,86.907,0.46083397]
[1773482302817,0.61062651,86.924,86.907,11.96731561]
[1773482307017,0.61062651,86.924,86.908,0.50454967]
[1773482307227,0.67622152,86.931,86.908,0.50454967]
[1773482307929,0.67622152,86.937,86.911,0.50825522]
[1773482308135,11.50231771,86.939,86.911,0.50825522]
[1773482308336,0.67622152,86.938,86.911,0.50825522]
[1773482311833,0.67622152,86.938,86.913,0.52265664]
[1773482314445,0.67622152,86.938,86.893,7.34]
[1773482314446,0.67622152,86.936,86.901,0.5296116]
[1773482314645,0.67622152,86.936,86.911,0.53302928]
[1773482315539,0.67622152,86.934,86.911,0.53302928]
[1773482315744,0.67622152,86.934,86.913,0.53640771]
[1773482317842,0.67622152,86.934,86.915,0.5430486]
[1773482320743,0.67622152,86.934,86.916,11.50536149]
[1773482321427,0.67622152,86.934,86.917,0.55272662]
[1773482321626,0.67622152,86.934,86.916,11.50536149]
[1773482323136,0.67622152,86.94,86.917,0.55899478]
[1773482323321,0.67622152,86.94,86.916,11.50536149]
[1773482324344,11.50231771,86.939,86.916,11.50536149]
[1773482324538,0.67622152,86.938,86.916,11.50536149]
[1773482328642,11.50258232,86.937,86.912,0.55899478]
[1773482328828,0.72692873,86.936,86.912,0.55899478]
[1773482329029,0.72692873,86.936,86.913,11.50575863]
[1773482329446,0.72692873,86.936,86.913,12.08558584]
[1773482330848,0.72692873,86.919,86.883,0.58547639]
[1773482331055,0.72692873,86.909,86.871,0.58547639]
[1773482331437,3.75426109,86.9,86.871,0.58547639]
[1773482331649,0.68977117,86.899,86.871,0.58547639]
[1773482332949,0.68977117,86.899,86.873,0.59370917]
[1773482334448,0.68977117,86.897,86.875,0.59639063]
[1773482334656,0.68977117,86.897,86.861,0.59639063]
[1773482335147,0.68977117,86.897,86.871,0.59904129]
[1773482336047,0.68977117,86.897,86.873,0.6016615]
[1773482337538,0.68977117,86.895,86.868,0.60425162]
[1773482337749,0.68977117,86.889,86.861,0.60681199]
[1773482340354,0.68977117,86.888,86.863,0.61184484]
[1773482343552,0.68977117,86.898,86.871,0.61917941]
[1773482346177,0.68977117,86.896,86.865,0.62626414]
[1773482350870,0.68977117,86.894,86.867,0.63753979]
[1773482353278,0.68977117,86.899,86.869,0.64187082]
[1773482353578,0.68977117,86.899,86.871,0.64187082]
[1773482356402,0.68977117,86.897,86.873,0.64818259]
[1773482358582,0.68977117,86.895,86.873,0.64818259]
[1773482359269,0.68977117,86.895,86.875,0.65427937]
[1773482364680,4.48938728,86.9,86.877,0.66770972]
[1773482364882,0.73220361,86.899,86.877,0.66770972]
[1773482365989,0.73220361,86.899,86.879,0.66954121]
[1773482367491,0.73220361,86.899,86.88,11.51012891]
[1773482368069,0.73220361,86.899,86.88,12.18327024]
[1773482368590,0.73220361,86.899,86.881,0.67314133]
[1773482369893,0.73220361,86.897,86.874,0.67665921]
[1773482374791,0.73220361,86.895,86.874,12.18755338]
[1773482377795,0.73220361,86.895,86.875,0.68994542]
[1773482379598,0.73220361,86.893,86.863,0.6930795]
[1773482379782,3.75718367,86.88,86.856,0.6930795]
[1773482380199,0.73220361,86.881,86.856,0.6930795]
[1773482381395,0.73220361,86.881,86.857,11.51317683]
[1773482381579,0.73220361,86.881,86.858,0.6946196]
[1773482383799,0.73220361,86.881,86.86,0.69913455]
[1773482386784,0.73220361,86.881,86.862,0.70349571]
[1773482387684,0.73220361,86.887,86.862,0.70349571]
[1773482389909,0.73220361,86.887,86.864,0.70908039]
[1773482390889,11.50916445,86.888,86.866,0.71043669]
[1773482391294,0.80262561,86.892,86.866,0.71043669]
[1773482391706,0.77221812,86.899,86.871,0.71177742]
[1773482396113,0.77221812,86.897,86.873,0.71825359]
[1773482396812,0.77221812,86.897,86.869,0.71950453]
[1773482398015,0.77221812,86.889,86.869,0.71950453]
[1773482398405,0.77221812,86.879,86.844,0.72074111]
[1773482398609,0.77221812,86.879,86.842,11.51516547]
[1773482398610,0.77221812,86.879,86.851,0.72074111]
[1773482400312,0.77221812,86.877,86.852,11.51383963]
[1773482400511,3.75718367,86.87,86.841,18.85529547]
[1773482400700,0.77221812,86.869,86.841,18.85529547]
[1773482400904,0.77221812,86.869,86.841,7.34]
[1773482401113,0.77221812,86.859,86.836,11.51590389]
[1773482401305,0.77221812,86.859,86.832,0.72436627]
[1773482401516,0.77221812,86.859,86.831,11.5165455]
[1773482401914,0.77221812,86.869,86.832,0.72554701]
[1773482402114,0.77221812,86.88,86.86,3.75718367]
[1773482402414,0.77221812,86.89,86.871,0.72554701]
[1773482402912,0.77221812,86.895,86.871,0.72554701]
[1773482403802,0.77221812,86.902,86.881,0.72786795]
[1773482404202,0.77221812,86.902,86.875,0.72786795]
[1773482404717,0.77221812,86.902,86.88,3.75718367]
[1773482404921,0.77221812,86.902,86.877,0.72900846]
[1773482405622,12.22804071,86.904,86.877,0.72900846]
[1773482405803,0.72100001,86.904,86.877,0.72900846]
[1773482406004,0.72100001,86.904,86.88,3.75718367]
[1773482406219,0.72100001,86.904,86.881,0.73013588]
[1773482406418,0.77221812,86.899,86.871,0.73013588]
[1773482407224,0.77221812,86.897,86.868,0.73125034]
[1773482407917,11.50774471,86.898,86.863,0.73235201]
[1773482407918,3.75718367,86.89,86.863,0.73235201]
[1773482408118,0.77221812,86.879,86.85,0.73235201]
[1773482408323,0.77221812,86.879,86.84,3.75718367]
[1773482408324,0.77221812,86.879,86.842,0.73235201]
[1773482409020,0.77221812,86.877,86.843,11.51503287]
[1773482409225,0.77221812,86.869,86.843,11.51503287]
[1773482409421,0.77221812,86.869,86.83,0.2]
[1773482409623,0.77221812,86.849,86.83,0.93451752]
[1773482409807,0.77221812,86.849,86.831,0.73451752]
[1773482410408,0.77221812,86.849,86.833,11.5163388]
[1773482411521,0.77221812,86.855,86.834,0.73558166]
[1773482412025,0.77221812,86.873,86.851,0.73663358]
[1773482413135,0.77221812,86.873,86.848,0.73767341]
[1773482413612,0.77221812,86.872,86.848,0.73767341]
[1773482413928,0.77221812,86.872,86.85,3.75897746]
[1773482420639,0.77221812,86.872,86.85,4.50360286]
[1773482420931,0.77221812,86.87,86.85,4.50360286]
[1773482422321,0.77221812,86.87,86.851,0.74743697]
[1773482427834,0.78622806,86.891,86.861,0.75277607]
[1773482429442,0.78622806,86.887,86.862,0.75363049]
[1773482431032,0.78622806,86.885,86.862,0.75363049]
[1773482431468,0.78622806,86.885,86.857,0.75531]
[1773482431956,0.78622806,86.885,86.861,0.75613532]
[1773482433628,0.78622806,86.885,86.862,11.5125141]
[1773482434245,0.78622806,86.883,86.862,11.5125141]
[1773482435727,0.78622806,86.883,86.863,0.75934287]
[1773482437239,0.78622806,86.883,86.862,11.5125141]
[1773482439545,0.78622806,86.869,86.831,12.27827735]
[1773482439723,0.78622806,86.869,86.832,0.76165311]
[1773482441857,7.34,86.877,86.832,0.76165311]
[1773482441858,0.78622806,86.859,86.832,0.76165311]
[1773482442038,0.78622806,86.849,86.83,0.2]
[1773482443036,0.78622806,86.847,86.83,0.2]
[1773482446353,12.30008715,86.852,86.831,0.76674227]
[1773482446649,11.51385909,86.852,86.831,0.76674227]
[1773482446858,0.78622806,86.851,86.831,0.76674227]
[1773482447058,0.78622806,86.851,86.832,0.76743627]
[1773482451153,0.78622806,86.851,86.831,11.51662424]
[1773482453456,0.84248971,86.849,86.831,11.51662424]
[1773482454854,0.84248971,86.849,86.83,0.2]
[1773482455548,0.84248971,86.849,86.831,0.77395267]
[1773482460367,0.84248971,86.849,86.83,0.2]
[1773482461666,0.84248971,86.849,86.83,0.97808634]
[1773482462167,0.84248971,86.839,86.821,29.96568137]
[1773482463467,0.84248971,86.839,86.82,0.2]
[1773482465350,0.84248971,86.839,86.82,11.71807705]
[1773482466168,0.84248971,86.859,86.821,0.78030262]
[1773482466758,0.84248971,86.859,86.831,0.78084087]
[1773482467567,12.35547558,86.859,86.833,0.78084087]
[1773482467752,0.84248971,86.858,86.833,0.78084087]
[1773482468987,0.84248971,86.858,86.833,0.7818989]
[1773482469471,0.84248971,86.878,86.843,0.7818989]
[1773482469649,0.84248971,86.886,86.861,0.78241882]
[1773482469850,0.84248971,86.886,86.87,3.75897746]
[1773482470654,0.84248971,86.886,86.869,0.78241882]
[1773482475562,0.84248971,86.883,86.864,0.78493018]
[1773482478591,0.84248971,86.889,86.871,0.78636883]
[1773482478795,0.84248971,86.895,86.871,0.78636883]
[1773482478989,0.84248971,86.891,86.871,0.78636883]
[1773482479307,0.84248971,86.883,86.867,11.51185145]
[1773482479793,0.84248971,86.883,86.867,12.29915205]
[1773482479989,0.84248971,86.883,86.867,0.7873006]
[1773482480175,0.84248971,86.883,86.861,0.7873006]
[1773482480381,0.84248971,86.883,86.861,11.51264664]
[1773482480583,0.84248971,86.883,86.862,0.7873006]
[1773482481798,0.84248971,86.883,86.864,0.7886585]
[1773482483000,0.84248971,86.883,86.866,0.78910077]
[1773482484293,11.50861047,86.892,86.851,7.34]
[1773482484294,0.85074278,86.891,86.87,3.75802521]
[1773482484495,107.48481,86.9,86.87,3.75802521]
[1773482484496,107.48481,86.9,86.871,0.78953797]
[1773482484700,0.85074278,86.916,86.89,3.75802521]
[1773482485200,7.43662072,86.921,86.9,3.75802521]
[1773482485404,8.290951,86.921,86.9,3.75802521]
[1773482485700,0.85433028,86.92,86.9,3.75802521]
[1773482486001,7.43662072,86.921,86.9,3.75802521]
[1773482486496,8.290951,86.921,86.901,11.50734744]
[1773482489205,0.85433028,86.949,86.91,3.75802521]
[1773482489409,0.85433028,86.949,86.92,3.75802521]
[1773482491307,0.85433028,86.949,86.884,57.5474312]
[1773482491308,0.85433028,86.947,86.93,3.75802521]
[1773482491525,0.85433028,86.956,86.93,3.75802521]
[1773482492013,0.85433028,86.956,86.92,3.75802521]
[1773482492514,0.85433028,86.954,86.921,11.50469966]
[1773482494212,0.85433028,86.952,86.93,3.75802521]
[1773482496601,0.85433028,86.952,86.931,11.50337624]
[1773482496802,0.85433028,86.952,86.932,0.02900843]
[1773482497012,7.39417675,86.958,86.94,3.78703364]
[1773482497716,0.85433028,86.957,86.931,11.50337624]
[1773482498017,0.85433028,86.956,86.918,11.50509675]
[1773482498516,0.85433028,86.949,86.918,11.50509675]
[1773482499112,0.85433028,86.947,86.917,0.03224438]
[1773482499316,11.50112711,86.948,86.907,11.50644033]
[1773482499317,0.85433028,86.939,86.907,11.50644033]
[1773482500013,0.85433028,86.939,86.907,11.54505484]
[1773482500221,0.85433028,86.939,86.91,3.75802521]
[1773482500599,0.85433028,86.939,86.91,3.79663972]
[1773482501802,0.85433028,86.939,86.911,11.55086868]
[1773482504220,0.85433028,86.939,86.912,0.05093064]
[1773482506819,0.85433028,86.937,86.912,0.05093064]
[1773482508825,0.85433028,86.937,86.91,3.75802521]
[1773482510235,0.85433028,86.937,86.911,0.07114053]
[1773482513017,0.85433028,86.937,86.911,11.57716393]
[1773482515435,0.85433028,86.937,86.912,0.08721431]
[1773482517440,0.85433028,86.937,86.92,3.75802521]
[1773482518919,0.85433028,86.937,86.921,11.50469966]
[1773482520739,0.85433028,86.937,86.911,40.37088442]
[1773482523123,0.85433028,86.937,86.911,40.2710819]
[1773482523320,0.85433028,86.937,86.911,11.5060234]
[1773482523526,0.85433028,86.935,86.902,11.50721502]
[1773482525038,0.85433028,86.935,86.868,61.6]
[1773482525039,0.85433028,86.919,86.871,0.11168054]
[1773482525247,0.85433028,86.917,86.877,0.11168054]
[1773482525427,0.85433028,86.917,86.88,3.75802521]
[1773482525827,0.85433028,86.917,86.877,0.11168054]
[1773482526124,0.85433028,86.909,86.872,0.11397384]
[1773482531261,0.85433028,86.909,86.881,0.12505252]
[1773482532951,0.85433028,86.907,86.882,0.12929333]
[1773482533931,0.85433028,86.907,86.882,11.63915728]
[1773482534261,0.85433028,86.907,86.882,11.50986395]
[1773482536045,0.85433028,86.907,86.88,3.75802521]
[1773482536046,0.85433028,86.905,86.87,3.75802521]
[1773482536246,0.85433028,86.899,86.872,11.51118887]
[1773482537650,0.85433028,86.899,86.868,7.34]
[1773482538543,0.85433028,86.897,86.868,7.34]
[1773482538755,0.85433028,86.889,86.868,7.34]
[1773482540448,0.85433028,86.889,86.864,11.51222648]
[1773482547756,0.89172505,86.887,86.864,11.51222648]
[1773482548637,0.89172505,86.885,86.864,11.51222648]
[1773482549352,0.89172505,86.879,86.867,12.22805797]
[1773482549553,0.89172505,86.879,86.867,11.48197697]
[1773482550658,0.89172505,86.877,86.867,11.48197697]
[1773482553261,11.50990611,86.882,86.868,0.91728681]
[1773482554755,0.89172505,86.895,86.871,0.91728681]
[1773482559961,11.50827444,86.894,86.871,0.91728681]
[1773482560168,0.89172505,86.893,86.871,0.91728681]
[1773482561970,0.89172505,86.887,86.867,11.48197697]
[1773482562160,0.89172505,86.879,86.867,1.34901758]
[1773482562367,0.89172505,86.879,86.853,11.51370706]
[1773482562674,0.89172505,86.879,86.854,0.91728681]
[1773482563881,12.40079419,86.888,86.854,0.91728681]
[1773482564062,12.40079419,86.888,86.85,3.75768662]
[1773482564063,11.50906914,86.888,86.856,0.91728681]
[1773482564380,0.89172505,86.887,86.856,0.91728681]
[1773482565168,0.89172505,86.885,86.858,0.91728681]
[1773482567165,11.509599,86.884,86.858,0.91728681]
[1773482567982,11.509599,86.884,86.86,0.91728681]
[1773482572266,11.50900986,86.889,86.86,0.91728681]
[1773482572985,12.41071395,86.889,86.86,0.91728681]
[1773482573282,11.50761228,86.899,86.86,0.91728681]
[1773482573479,0.90170409,86.888,86.862,0.84983612]
[1773482574873,0.90170409,86.886,86.864,0.84983612]
[1773482576777,0.90170409,86.886,86.866,0.84983612]
[1773482576975,0.90170409,86.891,86.866,0.84983612]
[1773482578071,3.75768662,86.89,86.866,0.84983612]
[1773482578274,0.90170409,86.889,86.866,0.84983612]
[1773482578978,11.50906914,86.888,86.866,0.84983612]
[1773482579183,0.90170409,86.887,86.866,0.84983612]
[1773482580985,0.90170409,86.898,86.866,0.84983612]
[1773482581176,0.90170409,86.898,86.868,0.84983612]
[1773482582576,11.50787714,86.897,86.87,0.84983612]
[1773482582781,0.90170409,86.896,86.87,0.84983612]
[1773482584993,0.90170409,86.896,86.872,0.84983612]
[1773482585578,3.75768662,86.9,86.872,0.84983612]
[1773482586085,0.90170409,86.899,86.872,0.84983612]
[1773482586598,11.50738629,86.901,86.872,0.84983612]
[1773482587499,0.90170409,86.901,86.874,0.84983612]